[Event "Titled Tuesday Blitz October 18 Late 2022"]
[White "Bulgurlu, Okan"]
[Black "Tan, Ralph"]
[WhiteFideId "6352316"]
[BlackFideId "30966590"]
[WhiteElo "2190"]
[BlackElo "2059"]
[Result "0-1"]
[Round "07"]
[TimeControl "180+1"]
[Date "2022.10.19"]
[WhiteClock "0:00:05"]
[BlackClock "0:00:18"]

1. d4 {[%clk 0:03:00]}  Nf6 {[%clk 0:02:59]} 2. Nc3 {[%clk 0:02:59]}  d5 {[%clk 0:02:59]} 3. Bf4 {[%clk 0:02:58]}  g6 {[%clk 0:02:59]} 4. Nb5 {[%clk 0:02:58]}  Na6 {[%clk 0:02:59]} 5. e3 {[%clk 0:02:57]}  Bg7 {[%clk 0:02:57]} 6. Nf3 {[%clk 0:02:55]}  O-O {[%clk 0:02:57]} 7. Be2 {[%clk 0:02:53]}  c6 {[%clk 0:02:57]} 8. Nc3 {[%clk 0:02:53]}  c5 {[%clk 0:02:54]} 9. Bxa6 {[%clk 0:02:44]}  bxa6 {[%clk 0:02:54]} 10. dxc5 {[%clk 0:02:45]}  Qa5 {[%clk 0:02:52]} 11. c6 {[%clk 0:02:40]}  Ne4 {[%clk 0:02:50]} 12. O-O {[%clk 0:02:37]}  Nxc3 {[%clk 0:02:40]} 13. bxc3 {[%clk 0:02:38]}  Qxc3 {[%clk 0:02:40]} 14. Qxd5 {[%clk 0:02:33]}  Be6 {[%clk 0:02:40]} 15. Qd3 {[%clk 0:02:31]}  Qxc6 {[%clk 0:02:40]} 16. Nd4 {[%clk 0:02:29]}  Bxd4 {[%clk 0:02:31]} 17. exd4 {[%clk 0:02:22]}  Bc4 {[%clk 0:02:31]} 18. Qc3 {[%clk 0:02:21]}  Rac8 {[%clk 0:02:25]} 19. Rfe1 {[%clk 0:02:21]}  Qf6 {[%clk 0:02:22]} 20. Be5 {[%clk 0:02:19]}  Qf5 {[%clk 0:02:18]} 21. Qe3 {[%clk 0:02:09]}  Qxc2 {[%clk 0:02:07]} 22. Qh6 {[%clk 0:02:09]}  f6 {[%clk 0:02:07]} 23. Bf4 {[%clk 0:02:02]}  Rf7 {[%clk 0:02:07]} 24. Rac1 {[%clk 0:01:57]}  Qxa2 {[%clk 0:02:06]} 25. Qh3 {[%clk 0:01:55]}  Rd8 {[%clk 0:01:55]} 26. Qc3 {[%clk 0:01:37]}  Bd5 {[%clk 0:01:50]} 27. Ra1 {[%clk 0:01:35]}  Qc4 {[%clk 0:01:50]} 28. Qxc4 {[%clk 0:01:31]}  Bxc4 {[%clk 0:01:51]} 29. Be3 {[%clk 0:01:27]}  e6 {[%clk 0:01:40]} 30. Ra5 {[%clk 0:01:26]}  Rfd7 {[%clk 0:01:36]} 31. h3 {[%clk 0:01:24]}  Kf7 {[%clk 0:01:36]} 32. Rc1 {[%clk 0:01:22]}  Bb5 {[%clk 0:01:36]} 33. Rc5 {[%clk 0:01:21]}  Rd5 {[%clk 0:01:35]} 34. Rc7+ {[%clk 0:01:20]}  R8d7 {[%clk 0:01:35]} 35. Rc8 {[%clk 0:01:21]}  e5 {[%clk 0:01:26]} 36. dxe5 {[%clk 0:01:21]}  Rxe5 {[%clk 0:01:27]} 37. Ra8 {[%clk 0:01:17]}  Ke6 {[%clk 0:01:15]} 38. Bxa7 {[%clk 0:01:14]}  Re1+ {[%clk 0:01:08]} 39. Kh2 {[%clk 0:01:13]}  Rdd1 {[%clk 0:01:06]} 40. Ra3 {[%clk 0:01:00]}  Rh1+ {[%clk 0:00:57]} 41. Kg3 {[%clk 0:00:59]}  Rhg1 {[%clk 0:00:55]} 42. Re3+ {[%clk 0:00:54]}  Kf5 {[%clk 0:00:52]} 43. Rf8 {[%clk 0:00:36]}  Bc6 {[%clk 0:00:44]} 44. f3 {[%clk 0:00:33]}  Rd2 {[%clk 0:00:24]} 45. Re5+ {[%clk 0:00:32]}  Kxe5 {[%clk 0:00:24]} 46. Bxg1 {[%clk 0:00:33]}  a5 {[%clk 0:00:20]} 47. Rf7 {[%clk 0:00:24]}  Bd5 {[%clk 0:00:20]} 48. Rxh7 {[%clk 0:00:24]}  a4 {[%clk 0:00:20]} 49. Ra7 {[%clk 0:00:24]}  Bb3 {[%clk 0:00:20]} 50. Bc5 {[%clk 0:00:23]}  g5 {[%clk 0:00:20]} 51. Bb4 {[%clk 0:00:22]}  Rc2 {[%clk 0:00:19]} 52. Ra5+ {[%clk 0:00:22]}  Ke6 {[%clk 0:00:19]} 53. Ba3 {[%clk 0:00:19]}  Ra2 {[%clk 0:00:18]} 54. Bb4 {[%clk 0:00:19]}  Bc4 {[%clk 0:00:19]} 55. Rc5 {[%clk 0:00:19]}  Bf1 {[%clk 0:00:19]} 56. Rc6+ {[%clk 0:00:19]}  Kf5 {[%clk 0:00:19]} 57. Rc5+ {[%clk 0:00:16]}  Kg6 {[%clk 0:00:19]} 58. f4 {[%clk 0:00:11]}  Rxg2+ {[%clk 0:00:19]} 59. Kf3 {[%clk 0:00:11]}  gxf4 {[%clk 0:00:19]} 60. Kxf4 {[%clk 0:00:10]}  Rb2 {[%clk 0:00:19]} 61. Ba3 {[%clk 0:00:10]}  Rb3 {[%clk 0:00:19]} 62. Bc1 {[%clk 0:00:07]}  Bxh3 {[%clk 0:00:19]} 63. Rc6 {[%clk 0:00:07]}  Bg2 {[%clk 0:00:18]} 64. Rc5 {[%clk 0:00:05]}  Bb7 {[%clk 0:00:18]} 65. Kg4 {[%clk 0:00:05]}  a3 {[%clk 0:00:18]} 66. Ra5 {[%clk 0:00:04]}  Bc8+ {[%clk 0:00:17]} 67. Kf4 {[%clk 0:00:04]}  a2 {[%clk 0:00:16]} 68. Rxa2 {[%clk 0:00:02]}  Rb4+ {[%clk 0:00:17]} 69. Ke3 {[%clk 0:00:02]}  Be6 {[%clk 0:00:17]} 70. Kd2 {[%clk 0:00:03]}  Bxa2 {[%clk 0:00:17]} 71. Kc3 {[%clk 0:00:04]}  Rb7 {[%clk 0:00:17]} 72. Bb2 {[%clk 0:00:05]}  Be6 {[%clk 0:00:18]} 0-1


[Site "https://www.chess.com"]

[Event "Titled Tuesday Blitz October 18 Late 2022"]
[White "Can, Melih Kaan"]
[Black "Yi, Richard"]
[WhiteFideId "6317383"]
[BlackFideId "2079518"]
[WhiteElo "2029"]
[BlackElo "2147"]
[Result "1-0"]
[Round "07"]
[TimeControl "180+1"]
[Date "2022.10.19"]
[WhiteClock "0:01:38"]
[BlackClock "0:00:15"]

1. e4 {[%clk 0:03:00]}  e5 {[%clk 0:02:51]} 2. Nf3 {[%clk 0:03:01]}  Nc6 {[%clk 0:02:49]} 3. Bb5 {[%clk 0:03:01]}  a6 {[%clk 0:02:46]} 4. Ba4 {[%clk 0:03:01]}  Nf6 {[%clk 0:02:43]} 5. d4 {[%clk 0:03:02]}  b5 {[%clk 0:02:12]} 6. dxe5 {[%clk 0:03:01]}  Nxe4 {[%clk 0:01:52]} 7. Bb3 {[%clk 0:03:00]}  Nc5 {[%clk 0:01:43]} 8. Bd5 {[%clk 0:03:00]}  Bb7 {[%clk 0:01:40]} 9. O-O {[%clk 0:02:59]}  Be7 {[%clk 0:01:39]} 10. Nc3 {[%clk 0:02:57]}  O-O {[%clk 0:01:39]} 11. Bf4 {[%clk 0:02:57]}  Ne6 {[%clk 0:01:39]} 12. Bg3 {[%clk 0:02:57]}  Rb8 {[%clk 0:01:15]} 13. Re1 {[%clk 0:02:57]}  h6 {[%clk 0:01:14]} 14. Qd2 {[%clk 0:02:55]}  Re8 {[%clk 0:01:14]} 15. Rad1 {[%clk 0:02:55]}  Qc8 {[%clk 0:01:10]} 16. a3 {[%clk 0:02:53]}  Nf8 {[%clk 0:01:05]} 17. Ne4 {[%clk 0:02:50]}  Nd8 {[%clk 0:01:04]} 18. h3 {[%clk 0:02:47]}  c6 {[%clk 0:00:58]} 19. Bb3 {[%clk 0:02:43]}  c5 {[%clk 0:00:58]} 20. Bd5 {[%clk 0:02:43]}  Bxd5 {[%clk 0:00:54]} 21. Qxd5 {[%clk 0:02:44]}  Nfe6 {[%clk 0:00:49]} 22. Bh4 {[%clk 0:02:30]}  Bxh4 {[%clk 0:00:48]} 23. Nxh4 {[%clk 0:02:29]}  Qc7 {[%clk 0:00:32]} 24. Nd6 {[%clk 0:02:27]}  Rf8 {[%clk 0:00:32]} 25. Nhf5 {[%clk 0:02:26]}  Nc6 {[%clk 0:00:31]} 26. Qf3 {[%clk 0:02:15]}  Ncd4 {[%clk 0:00:27]} 27. Qg3 {[%clk 0:02:08]}  Nxf5 {[%clk 0:00:25]} 28. Nxf5 {[%clk 0:02:07]}  Kh8 {[%clk 0:00:26]} 29. Rd6 {[%clk 0:02:05]}  Rb6 {[%clk 0:00:25]} 30. Rxe6 {[%clk 0:02:00]}  g6 {[%clk 0:00:24]} 31. Rxb6 {[%clk 0:01:55]}  Qxb6 {[%clk 0:00:25]} 32. Nxh6 {[%clk 0:01:49]}  b4 {[%clk 0:00:25]} 33. Ng4 {[%clk 0:01:42]}  Kg7 {[%clk 0:00:19]} 34. Qf4 {[%clk 0:01:38]}  bxa3 {[%clk 0:00:15]} 35. bxa3 {[%clk 0:01:39]}  Re8 {[%clk 0:00:15]} 36. Qh6+ {[%clk 0:01:38]}  Kg8 {[%clk 0:00:15]} 37. Nf6+ {[%clk 0:01:38]} 1-0


[Site "https://www.chess.com"]

[Event "Titled Tuesday Blitz October 18 Late 2022"]
[White "Castella Garcia, Fausto"]
[Black "Sabar, Ethmane Daouda"]
[WhiteFideId "3501922"]
[BlackFideId "19600097"]
[WhiteElo "2246"]
[BlackElo "1950"]
[Result "0-1"]
[Round "07"]
[TimeControl "180+1"]
[Date "2022.10.19"]
[WhiteClock "0:01:37"]
[BlackClock "0:02:17"]

1. e4 {[%clk 0:02:15]}  c5 {[%clk 0:02:58]} 2. Nf3 {[%clk 0:02:15]}  Nc6 {[%clk 0:02:58]} 3. Bb5 {[%clk 0:02:14]}  e6 {[%clk 0:02:56]} 4. O-O {[%clk 0:02:12]}  Nge7 {[%clk 0:02:55]} 5. Nc3 {[%clk 0:02:12]}  a6 {[%clk 0:02:55]} 6. Bxc6 {[%clk 0:02:12]}  Nxc6 {[%clk 0:02:56]} 7. d4 {[%clk 0:02:11]}  cxd4 {[%clk 0:02:55]} 8. Nxd4 {[%clk 0:02:11]}  Be7 {[%clk 0:02:55]} 9. Nxc6 {[%clk 0:02:10]}  bxc6 {[%clk 0:02:54]} 10. e5 {[%clk 0:02:09]}  O-O {[%clk 0:02:52]} 11. Ne4 {[%clk 0:02:08]}  c5 {[%clk 0:02:48]} 12. Qg4 {[%clk 0:01:51]}  Kh8 {[%clk 0:02:45]} 13. Bg5 {[%clk 0:01:48]}  f6 {[%clk 0:02:39]} 14. exf6 {[%clk 0:01:47]}  gxf6 {[%clk 0:02:40]} 15. Bh6 {[%clk 0:01:42]}  Rg8 {[%clk 0:02:40]} 16. Qh4 {[%clk 0:01:37]}  f5 {[%clk 0:02:17]} 0-1


[Site "https://www.chess.com"]

[Event "Titled Tuesday Blitz October 18 Late 2022"]
[White "Cosoi Scherzer, Alejandro"]
[Black "Arnold, Ken"]
[WhiteFideId "3401430"]
[BlackFideId "2056836"]
[WhiteElo "1967"]
[BlackElo "2328"]
[Result "1-0"]
[Round "07"]
[TimeControl "180+1"]
[Date "2022.10.19"]
[WhiteClock "0:00:01"]
[BlackClock "0:00:12"]

1. e4 {[%clk 0:03:00]}  c6 {[%clk 0:02:59]} 2. d4 {[%clk 0:02:59]}  d5 {[%clk 0:02:59]} 3. e5 {[%clk 0:03:00]}  Bf5 {[%clk 0:02:59]} 4. h4 {[%clk 0:03:00]}  h5 {[%clk 0:02:58]} 5. Bg5 {[%clk 0:03:01]}  Qb6 {[%clk 0:02:58]} 6. Bd3 {[%clk 0:03:01]}  Bxd3 {[%clk 0:02:55]} 7. Qxd3 {[%clk 0:03:02]}  Qxb2 {[%clk 0:02:49]} 8. e6 {[%clk 0:03:02]}  Qxa1 {[%clk 0:02:46]} 9. Qb3 {[%clk 0:03:00]}  b5 {[%clk 0:02:32]} 10. exf7+ {[%clk 0:02:55]}  Kxf7 {[%clk 0:02:31]} 11. Nf3 {[%clk 0:02:56]}  Nd7 {[%clk 0:02:29]} 12. O-O {[%clk 0:02:53]}  Ngf6 {[%clk 0:02:25]} 13. Nbd2 {[%clk 0:02:51]}  Qxf1+ {[%clk 0:02:24]} 14. Nxf1 {[%clk 0:02:52]}  e6 {[%clk 0:02:23]} 15. Bf4 {[%clk 0:02:35]}  Be7 {[%clk 0:02:19]} 16. Ng5+ {[%clk 0:02:34]}  Kg8 {[%clk 0:02:18]} 17. Nxe6 {[%clk 0:02:30]}  a5 {[%clk 0:02:09]} 18. Ng5 {[%clk 0:02:15]}  Rc8 {[%clk 0:01:28]} 19. Qe3 {[%clk 0:02:11]}  Ne4 {[%clk 0:01:21]} 20. Nxe4 {[%clk 0:02:08]}  dxe4 {[%clk 0:01:21]} 21. Qxe4 {[%clk 0:02:03]}  Kf7 {[%clk 0:01:21]} 22. Qf5+ {[%clk 0:01:50]}  Nf6 {[%clk 0:01:20]} 23. Ng3 {[%clk 0:01:31]}  g6 {[%clk 0:01:17]} 24. Qd3 {[%clk 0:01:27]}  Rhd8 {[%clk 0:01:14]} 25. Be5 {[%clk 0:01:20]}  Rd5 {[%clk 0:01:11]} 26. Qf3 {[%clk 0:01:04]}  Ke6 {[%clk 0:00:35]} 27. Ne4 {[%clk 0:01:02]}  Ng4 {[%clk 0:00:28]} 28. Ng5+ {[%clk 0:00:41]}  Kd7 {[%clk 0:00:23]} 29. g3 {[%clk 0:00:17]}  Rf8 {[%clk 0:00:22]} 30. Qc3 {[%clk 0:00:13]}  Bxg5 {[%clk 0:00:21]} 31. hxg5 {[%clk 0:00:13]}  Nxf2 {[%clk 0:00:21]} 32. Qxa5 {[%clk 0:00:11]}  Ne4 {[%clk 0:00:16]} 33. Qa7+ {[%clk 0:00:10]}  Ke6 {[%clk 0:00:16]} 34. Qg7 {[%clk 0:00:07]}  Rdd8 {[%clk 0:00:13]} 35. Qxg6+ {[%clk 0:00:06]}  Kd5 {[%clk 0:00:13]} 36. Qxh5 {[%clk 0:00:04]}  Nd2 {[%clk 0:00:12]} 37. Qe2 {[%clk 0:00:02]}  Nf3+ {[%clk 0:00:12]} 38. Kg2 {[%clk 0:00:02]}  Nxg5 {[%clk 0:00:12]} 39. Qd3 {[%clk 0:00:01]}  Ne4 {[%clk 0:00:12]} 40. Qb3# {[%clk 0:00:01]} 1-0


[Site "https://www.chess.com"]

[Event "Titled Tuesday Blitz October 18 Late 2022"]
[White "Cruz, William Ferreira Da"]
[Black "Korchmar, Vasiliy"]
[WhiteFideId "2118050"]
[BlackFideId "24131750"]
[WhiteElo "2223"]
[BlackElo "2370"]
[Result "1-0"]
[Round "07"]
[TimeControl "180+1"]
[Date "2022.10.19"]
[WhiteClock "0:00:06"]
[BlackClock "0:00:04"]

1. d4 {[%clk 0:02:43]}  d5 {[%clk 0:02:58]} 2. c4 {[%clk 0:02:43]}  c6 {[%clk 0:02:58]} 3. Nc3 {[%clk 0:02:42]}  Nf6 {[%clk 0:02:58]} 4. Nf3 {[%clk 0:02:43]}  e6 {[%clk 0:02:59]} 5. Bg5 {[%clk 0:02:42]}  Be7 {[%clk 0:02:58]} 6. e3 {[%clk 0:02:41]}  Nbd7 {[%clk 0:02:58]} 7. Qc2 {[%clk 0:02:34]}  O-O {[%clk 0:02:58]} 8. Rd1 {[%clk 0:02:34]}  h6 {[%clk 0:02:53]} 9. Bxf6 {[%clk 0:02:32]}  Bxf6 {[%clk 0:02:52]} 10. Bd3 {[%clk 0:02:30]}  dxc4 {[%clk 0:02:52]} 11. Bxc4 {[%clk 0:02:29]}  Qe7 {[%clk 0:02:51]} 12. O-O {[%clk 0:02:21]}  e5 {[%clk 0:02:48]} 13. dxe5 {[%clk 0:02:21]}  Nxe5 {[%clk 0:02:48]} 14. Nxe5 {[%clk 0:02:19]}  Bxe5 {[%clk 0:02:49]} 15. h3 {[%clk 0:01:58]}  Qf6 {[%clk 0:02:04]} 16. Bb3 {[%clk 0:01:45]}  Bf5 {[%clk 0:02:01]} 17. e4 {[%clk 0:01:38]}  Bg6 {[%clk 0:01:22]} 18. Rd7 {[%clk 0:01:26]}  h5 {[%clk 0:00:58]} 19. Kh1 {[%clk 0:01:11]}  Qf4 {[%clk 0:00:42]} 20. g3 {[%clk 0:01:08]}  Qf3+ {[%clk 0:00:40]} 21. Kg1 {[%clk 0:01:06]}  h4 {[%clk 0:00:33]} 22. Rd3 {[%clk 0:00:58]}  Qf6 {[%clk 0:00:28]} 23. f4 {[%clk 0:00:57]}  Bxc3 {[%clk 0:00:16]} 24. Rxc3 {[%clk 0:00:58]}  Qd4+ {[%clk 0:00:13]} 25. Qf2 {[%clk 0:00:56]}  Qxf2+ {[%clk 0:00:11]} 26. Rxf2 {[%clk 0:00:54]}  hxg3 {[%clk 0:00:12]} 27. Rxg3 {[%clk 0:00:53]}  Bxe4 {[%clk 0:00:11]} 28. Re3 {[%clk 0:00:53]}  Bd5 {[%clk 0:00:03]} 29. Bxd5 {[%clk 0:00:52]}  cxd5 {[%clk 0:00:04]} 30. Rd2 {[%clk 0:00:52]}  Rad8 {[%clk 0:00:03]} 31. Re5 {[%clk 0:00:52]}  d4 {[%clk 0:00:03]} 32. Re4 {[%clk 0:00:52]}  Rfe8 {[%clk 0:00:03]} 33. Rxe8+ {[%clk 0:00:50]}  Rxe8 {[%clk 0:00:03]} 34. Rxd4 {[%clk 0:00:51]}  Re2 {[%clk 0:00:03]} 35. Rb4 {[%clk 0:00:50]}  b6 {[%clk 0:00:04]} 36. Kf1 {[%clk 0:00:48]}  Rc2 {[%clk 0:00:03]} 37. a4 {[%clk 0:00:45]}  g6 {[%clk 0:00:03]} 38. b3 {[%clk 0:00:39]}  Kg7 {[%clk 0:00:03]} 39. Rb5 {[%clk 0:00:38]}  Rb2 {[%clk 0:00:03]} 40. Kg1 {[%clk 0:00:32]}  Kf6 {[%clk 0:00:04]} 41. h4 {[%clk 0:00:32]}  Ke6 {[%clk 0:00:03]} 42. Kf1 {[%clk 0:00:27]}  Kd6 {[%clk 0:00:03]} 43. a5 {[%clk 0:00:21]}  bxa5 {[%clk 0:00:03]} 44. Rxa5 {[%clk 0:00:21]}  Rxb3 {[%clk 0:00:03]} 45. Rxa7 {[%clk 0:00:21]}  Ke6 {[%clk 0:00:03]} 46. Kf2 {[%clk 0:00:17]}  Rh3 {[%clk 0:00:03]} 47. Ra6+ {[%clk 0:00:11]}  Kf5 {[%clk 0:00:03]} 48. Ra7 {[%clk 0:00:08]}  f6 {[%clk 0:00:03]} 49. Ra4 {[%clk 0:00:07]}  Rxh4 {[%clk 0:00:03]} 50. Kg3 {[%clk 0:00:08]}  Rg4+ {[%clk 0:00:03]} 51. Kf3 {[%clk 0:00:08]}  Rh4 {[%clk 0:00:03]} 52. Ra5+ {[%clk 0:00:08]}  Ke6 {[%clk 0:00:03]} 53. Ra6+ {[%clk 0:00:08]}  Kf7 {[%clk 0:00:04]} 54. Ra7+ {[%clk 0:00:09]}  Kf8 {[%clk 0:00:04]} 55. Kg3 {[%clk 0:00:09]}  Rh1 {[%clk 0:00:04]} 56. Kf3 {[%clk 0:00:09]}  Re1 {[%clk 0:00:04]} 57. Kg3 {[%clk 0:00:09]}  Re3+ {[%clk 0:00:03]} 58. Kg4 {[%clk 0:00:09]}  Re7 {[%clk 0:00:04]} 59. Ra6 {[%clk 0:00:08]}  Kf7 {[%clk 0:00:04]} 60. Kf3 {[%clk 0:00:08]}  Rb7 {[%clk 0:00:04]} 61. Kg4 {[%clk 0:00:08]}  Rd7 {[%clk 0:00:03]} 62. Kf3 {[%clk 0:00:08]}  Ke7 {[%clk 0:00:04]} 63. Ke4 {[%clk 0:00:07]}  Rd6 {[%clk 0:00:04]} 64. Ra7+ {[%clk 0:00:07]}  Ke6 {[%clk 0:00:04]} 65. Rg7 {[%clk 0:00:08]}  f5+ {[%clk 0:00:04]} 66. Kf3 {[%clk 0:00:08]}  Kf6 {[%clk 0:00:04]} 67. Ra7 {[%clk 0:00:08]}  Rd3+ {[%clk 0:00:04]} 68. Kf2 {[%clk 0:00:08]}  Rb3 {[%clk 0:00:05]} 69. Ra6+ {[%clk 0:00:08]}  Kg7 {[%clk 0:00:05]} 70. Rd6 {[%clk 0:00:07]}  Kh6 {[%clk 0:00:06]} 71. Ra6 {[%clk 0:00:06]}  Kh5 {[%clk 0:00:06]} 72. Kg2 {[%clk 0:00:06]}  Rb2+ {[%clk 0:00:06]} 73. Kf3 {[%clk 0:00:06]}  Rb3+ {[%clk 0:00:06]} 74. Kg2 {[%clk 0:00:07]}  Rd3 {[%clk 0:00:05]} 75. Kf2 {[%clk 0:00:07]}  Rh3 {[%clk 0:00:05]} 76. Kg2 {[%clk 0:00:07]}  Rh4 {[%clk 0:00:05]} 77. Kf3 {[%clk 0:00:06]}  Rg4 {[%clk 0:00:05]} 78. Ra1 {[%clk 0:00:05]}  Rh4 {[%clk 0:00:04]} 79. Rg1 {[%clk 0:00:05]}  Kh6 {[%clk 0:00:04]} 80. Ra1 {[%clk 0:00:05]}  Kh5 {[%clk 0:00:04]} 81. Rg1 {[%clk 0:00:05]}  Rh3+ {[%clk 0:00:05]} 82. Kf2 {[%clk 0:00:04]}  Rb3 {[%clk 0:00:05]} 83. Rg5+ {[%clk 0:00:03]}  Kh6 {[%clk 0:00:05]} 84. Rg1 {[%clk 0:00:04]}  Kg7 {[%clk 0:00:05]} 85. Ra1 {[%clk 0:00:03]}  Rb6 {[%clk 0:00:04]} 86. Ra7+ {[%clk 0:00:03]}  Kf6 {[%clk 0:00:05]} 87. Kg3 {[%clk 0:00:04]}  Rb3+ {[%clk 0:00:05]} 88. Kf2 {[%clk 0:00:04]}  Rh3 {[%clk 0:00:04]} 89. Ra6+ {[%clk 0:00:05]}  Kg7 {[%clk 0:00:04]} 90. Kg2 {[%clk 0:00:06]}  Kf7 {[%clk 0:00:04]} 91. Kxh3 {[%clk 0:00:06]} 1-0


[Site "https://www.chess.com"]

[Event "Titled Tuesday Blitz October 18 Late 2022"]
[White "Czernek, Tymon"]
[Black "Ter-Sahakyan, Samvel"]
[WhiteFideId "1199510"]
[BlackFideId "13302531"]
[WhiteElo "2240"]
[BlackElo "2604"]
[Result "0-1"]
[Round "07"]
[TimeControl "180+1"]
[Date "2022.10.18"]
[WhiteClock "0:00:20"]
[BlackClock "0:00:57"]

1. e4 {[%clk 0:03:00]}  c6 {[%clk 0:02:59]} 2. Nf3 {[%clk 0:03:01]}  d5 {[%clk 0:02:59]} 3. Nc3 {[%clk 0:03:01]}  Bg4 {[%clk 0:02:59]} 4. exd5 {[%clk 0:02:59]}  cxd5 {[%clk 0:02:57]} 5. d4 {[%clk 0:02:59]}  Nc6 {[%clk 0:02:57]} 6. Be3 {[%clk 0:02:59]}  e6 {[%clk 0:02:56]} 7. Be2 {[%clk 0:02:59]}  Nf6 {[%clk 0:02:54]} 8. O-O {[%clk 0:02:59]}  Bd6 {[%clk 0:02:54]} 9. h3 {[%clk 0:02:58]}  Bh5 {[%clk 0:02:46]} 10. Bg5 {[%clk 0:02:47]}  Rc8 {[%clk 0:02:43]} 11. Re1 {[%clk 0:02:31]}  O-O {[%clk 0:02:38]} 12. Ne5 {[%clk 0:02:30]}  Bxe2 {[%clk 0:02:35]} 13. Rxe2 {[%clk 0:02:31]}  Be7 {[%clk 0:02:29]} 14. Qd3 {[%clk 0:02:25]}  a6 {[%clk 0:02:15]} 15. Rd1 {[%clk 0:02:19]}  Nxe5 {[%clk 0:02:12]} 16. dxe5 {[%clk 0:02:18]}  Nd7 {[%clk 0:02:12]} 17. Bxe7 {[%clk 0:01:45]}  Qxe7 {[%clk 0:02:13]} 18. f4 {[%clk 0:01:40]}  Rc4 {[%clk 0:02:08]} 19. Qg3 {[%clk 0:01:29]}  Rfc8 {[%clk 0:02:03]} 20. Kh2 {[%clk 0:01:22]}  h6 {[%clk 0:01:49]} 21. f5 {[%clk 0:01:22]}  Qg5 {[%clk 0:01:49]} 22. Qxg5 {[%clk 0:01:13]}  hxg5 {[%clk 0:01:50]} 23. fxe6 {[%clk 0:01:12]}  fxe6 {[%clk 0:01:49]} 24. Rd3 {[%clk 0:01:12]}  g4 {[%clk 0:01:39]} 25. Rg3 {[%clk 0:01:02]}  gxh3 {[%clk 0:01:37]} 26. gxh3 {[%clk 0:01:03]}  Rf8 {[%clk 0:01:34]} 27. Reg2 {[%clk 0:01:02]}  Rf7 {[%clk 0:01:33]} 28. Rg5 {[%clk 0:01:00]}  Rcf4 {[%clk 0:01:27]} 29. Re2 {[%clk 0:00:34]}  R4f5 {[%clk 0:01:23]} 30. Rg6 {[%clk 0:00:31]}  Re7 {[%clk 0:01:23]} 31. Kg2 {[%clk 0:00:23]}  Nxe5 {[%clk 0:01:21]} 32. Rg3 {[%clk 0:00:23]}  Nc6 {[%clk 0:01:14]} 33. Rge3 {[%clk 0:00:21]}  d4 {[%clk 0:01:14]} 34. Rxe6 {[%clk 0:00:19]}  Rxe6 {[%clk 0:01:14]} 35. Rxe6 {[%clk 0:00:20]}  dxc3 {[%clk 0:01:15]} 36. bxc3 {[%clk 0:00:21]}  Rc5 {[%clk 0:01:14]} 37. Re8+ {[%clk 0:00:19]}  Kf7 {[%clk 0:01:13]} 38. Re3 {[%clk 0:00:20]}  Ra5 {[%clk 0:01:13]} 39. Rd3 {[%clk 0:00:19]}  Rxa2 {[%clk 0:01:02]} 40. Rd7+ {[%clk 0:00:19]}  Kf6 {[%clk 0:01:02]} 41. Rxb7 {[%clk 0:00:20]}  Rxc2+ {[%clk 0:01:02]} 42. Kf1 {[%clk 0:00:20]}  Rxc3 {[%clk 0:01:02]} 43. Rb6 {[%clk 0:00:19]}  a5 {[%clk 0:01:02]} 44. Ra6 {[%clk 0:00:20]}  Ke5 {[%clk 0:00:59]} 45. Ke1 {[%clk 0:00:20]}  Kd5 {[%clk 0:00:59]} 46. Kd2 {[%clk 0:00:20]}  Rxh3 {[%clk 0:00:58]} 47. Rb6 {[%clk 0:00:20]}  Kc5 {[%clk 0:00:57]} 0-1


[Site "https://www.chess.com"]

[Event "Titled Tuesday Blitz October 18 Late 2022"]
[White "Ferreira, Vitor Hugo Vieira"]
[Black "Aldokhin, Ivan"]
[WhiteFideId "2119765"]
[BlackFideId "24115720"]
[WhiteElo "2168"]
[BlackElo "2313"]
[Result "0-1"]
[Round "07"]
[TimeControl "180+1"]
[Date "2022.10.19"]
[WhiteClock "0:00:07"]
[BlackClock "0:00:11"]

1. e4 {[%clk 0:03:00]}  c5 {[%clk 0:02:54]} 2. Nf3 {[%clk 0:03:01]}  e6 {[%clk 0:02:55]} 3. d4 {[%clk 0:03:01]}  cxd4 {[%clk 0:02:55]} 4. Nxd4 {[%clk 0:03:02]}  a6 {[%clk 0:02:55]} 5. Bd3 {[%clk 0:03:00]}  Qc7 {[%clk 0:02:55]} 6. O-O {[%clk 0:03:00]}  Nf6 {[%clk 0:02:56]} 7. c4 {[%clk 0:02:58]}  d6 {[%clk 0:02:56]} 8. Nc3 {[%clk 0:02:58]}  Be7 {[%clk 0:02:55]} 9. Qe2 {[%clk 0:02:58]}  Nbd7 {[%clk 0:02:53]} 10. f4 {[%clk 0:02:53]}  b6 {[%clk 0:02:49]} 11. Bd2 {[%clk 0:02:53]}  Bb7 {[%clk 0:02:49]} 12. Rae1 {[%clk 0:02:52]}  Rc8 {[%clk 0:02:30]} 13. e5 {[%clk 0:02:45]}  dxe5 {[%clk 0:02:24]} 14. fxe5 {[%clk 0:02:45]}  Bc5 {[%clk 0:02:25]} 15. exf6 {[%clk 0:02:36]}  Bxd4+ {[%clk 0:02:21]} 16. Kh1 {[%clk 0:02:35]}  Nxf6 {[%clk 0:02:06]} 17. Bf4 {[%clk 0:02:13]}  Qc6 {[%clk 0:01:59]} 18. Rf3 {[%clk 0:01:56]}  O-O {[%clk 0:01:33]} 19. Rg3 {[%clk 0:01:51]}  g6 {[%clk 0:01:32]} 20. Be5 {[%clk 0:01:49]}  Bxe5 {[%clk 0:01:24]} 21. Qxe5 {[%clk 0:01:49]}  Nd7 {[%clk 0:01:23]} 22. Qf4 {[%clk 0:01:31]}  f5 {[%clk 0:01:02]} 23. Qh6 {[%clk 0:01:23]}  Rf7 {[%clk 0:01:02]} 24. h4 {[%clk 0:01:16]}  Qd6 {[%clk 0:00:57]} 25. Qg5 {[%clk 0:00:56]}  Nf6 {[%clk 0:00:50]} 26. Be2 {[%clk 0:00:46]}  f4 {[%clk 0:00:41]} 27. Rh3 {[%clk 0:00:42]}  Rc5 {[%clk 0:00:35]} 28. Qh6 {[%clk 0:00:37]}  Nh5 {[%clk 0:00:20]} 29. Rd3 {[%clk 0:00:26]}  Qe7 {[%clk 0:00:10]} 30. Rh3 {[%clk 0:00:17]}  Ng3+ {[%clk 0:00:08]} 31. Kh2 {[%clk 0:00:15]}  Nf5 {[%clk 0:00:07]} 32. Qxf4 {[%clk 0:00:11]}  Ng7 {[%clk 0:00:04]} 33. Qe3 {[%clk 0:00:09]}  Nf5 {[%clk 0:00:04]} 34. Qf4 {[%clk 0:00:07]}  Qd6 {[%clk 0:00:04]} 35. Qxd6 {[%clk 0:00:07]}  Nxd6 {[%clk 0:00:05]} 36. b4 {[%clk 0:00:06]}  Re5 {[%clk 0:00:05]} 37. Kg1 {[%clk 0:00:05]}  Nxc4 {[%clk 0:00:05]} 38. Bxc4 {[%clk 0:00:04]}  Rxe1+ {[%clk 0:00:05]} 39. Kh2 {[%clk 0:00:05]}  Rf2 {[%clk 0:00:05]} 40. Rg3 {[%clk 0:00:05]}  Rc1 {[%clk 0:00:05]} 41. Bxe6+ {[%clk 0:00:05]}  Kg7 {[%clk 0:00:05]} 42. Nd5 {[%clk 0:00:05]}  Bxd5 {[%clk 0:00:04]} 43. Bxd5 {[%clk 0:00:06]}  Rd1 {[%clk 0:00:04]} 44. Bf3 {[%clk 0:00:06]}  Rd4 {[%clk 0:00:04]} 45. Kh3 {[%clk 0:00:05]}  Rxa2 {[%clk 0:00:05]} 46. Rg5 {[%clk 0:00:05]}  Rb2 {[%clk 0:00:05]} 47. b5 {[%clk 0:00:06]}  Rxb5 {[%clk 0:00:05]} 48. Rg3 {[%clk 0:00:06]}  Rbb4 {[%clk 0:00:06]} 49. Bg4 {[%clk 0:00:06]}  h5 {[%clk 0:00:06]} 50. Rc3 {[%clk 0:00:05]}  Rxg4 {[%clk 0:00:05]} 51. g3 {[%clk 0:00:05]}  Kh6 {[%clk 0:00:05]} 52. Rc8 {[%clk 0:00:05]}  Rgc4 {[%clk 0:00:06]} 53. Rh8+ {[%clk 0:00:05]}  Kg7 {[%clk 0:00:06]} 54. Rb8 {[%clk 0:00:05]}  a5 {[%clk 0:00:07]} 55. Rb7+ {[%clk 0:00:06]}  Kf6 {[%clk 0:00:07]} 56. Rb8 {[%clk 0:00:06]}  Rc3 {[%clk 0:00:07]} 57. Rf8+ {[%clk 0:00:06]}  Ke7 {[%clk 0:00:08]} 58. Rc8 {[%clk 0:00:07]}  Rbb3 {[%clk 0:00:07]} 59. Rb8 {[%clk 0:00:06]}  Rxg3+ {[%clk 0:00:07]} 60. Kh2 {[%clk 0:00:06]}  Rh3+ {[%clk 0:00:08]} 61. Kg2 {[%clk 0:00:06]}  Rhg3+ {[%clk 0:00:09]} 62. Kf2 {[%clk 0:00:07]}  Rgc3 {[%clk 0:00:10]} 63. Rb7+ {[%clk 0:00:07]}  Kd6 {[%clk 0:00:10]} 64. Rg7 {[%clk 0:00:06]}  Rc2+ {[%clk 0:00:11]} 65. Ke1 {[%clk 0:00:07]}  Rb1# {[%clk 0:00:11]} 0-1


[Site "https://www.chess.com"]